bitfinex-derivatives/quotes_BNBF0:USTF0_20250807
["timestamp","ask_amount","ask_price","bid_price","bid_amount"]
[1754552385209,0.8762195,767.69,766.9,1.099]
[1754552386011,0.8762195,767.68,766.9,1.099]
[1754552386206,0.8762195,767.67,766.9,1.099]
[1754552387312,0.8762195,767.68,766.9,1.099]
[1754552387813,1.1717596,767.86,766.9,1.099]
[1754552388113,0.87480285,767.67,766.9,1.099]
[1754552388909,1.7575532,768.0,766.9,1.099]
[1754552388910,0.87480285,767.66,766.9,1.099]
[1754552391112,0.87480285,767.65,766.9,1.099]
[1754552391316,0.87480285,767.64,766.9,1.099]
[1754552391717,0.87480285,767.65,766.9,1.099]
[1754552392014,0.87480285,767.64,766.9,1.099]
[1754552392316,0.87480285,767.62,766.9,1.099]
[1754552392717,0.87480285,767.63,766.9,1.099]
[1754552393318,0.87480285,767.62,766.9,1.099]
[1754552393515,0.87480285,767.75,766.9,1.099]
[1754552394118,0.87480285,767.74,766.9,1.099]
[1754552394318,0.87480285,767.75,766.9,1.099]
[1754552394515,0.87480285,767.74,766.9,1.099]
[1754552394814,0.87480285,767.75,766.9,1.099]
[1754552395214,0.87480285,767.72,766.9,1.099]
[1754552395616,0.87480285,767.64,766.9,1.099]
[1754552395818,0.87480285,767.62,766.9,1.099]
[1754552396515,0.87480285,767.6,766.9,1.099]
[1754552397521,0.87480285,767.68,766.9,1.099]
[1754552397922,0.87480285,767.73,766.9,1.099]
[1754552398120,0.87480285,767.72,766.9,1.099]
[1754552399321,0.22653595,768.55,766.9,1.099]
[1754552399322,0.87480285,767.73,766.9,1.099]
[1754552399923,0.87480285,767.74,766.9,1.099]
[1754552400318,0.87480285,767.73,766.9,1.099]
[1754552400719,0.87480285,767.72,766.9,1.099]
[1754552400919,0.87480285,767.71,766.9,1.099]
[1754552402018,0.87480285,767.82,766.97,0.87542883]
[1754552402520,0.87480285,767.81,766.98,0.87542883]
[1754552403224,0.87480285,767.8,766.99,0.87542883]
[1754552403624,0.87480285,767.79,767.0,0.87542883]
[1754552404124,0.87480285,767.86,766.98,0.87542883]
[1754552404323,0.87480285,767.83,766.97,0.87542883]
[1754552404620,0.87480285,767.83,766.98,0.87542883]
[1754552406221,0.87480285,767.81,766.98,0.87542883]
[1754552406620,0.87480285,767.75,766.92,0.87542883]
[1754552406824,0.87480285,767.71,766.9,1.099]
[1754552407220,1.1717596,767.92,766.9,1.97442883]
[1754552407221,0.87480285,767.72,766.9,1.97442883]
[1754552407421,0.87480285,767.71,766.9,1.97442883]
[1754552409321,0.87480285,767.71,766.91,0.87542883]
[1754552410223,0.87480285,767.78,766.99,0.87542883]
[1754552410526,0.87716448,767.67,767.06,0.8768988]
[1754552411325,0.87716448,767.76,766.99,0.8768988]
[1754552411923,0.87716448,767.82,767.11,0.8768988]
[1754552412424,0.87716448,767.83,767.11,0.8768988]
[1754552412827,0.87716448,767.81,767.1,0.8768988]
[1754552413027,0.87716448,767.8,767.1,0.8768988]
[1754552413529,0.87716448,767.8,767.09,0.8768988]
[1754552414927,0.87716448,767.82,767.11,0.8768988]
[1754552415530,0.87716448,767.89,767.08,0.8768988]
[1754552415830,0.87716448,767.89,767.09,1.015]
[1754552416327,0.87716448,767.9,767.09,1.015]
[1754552417225,0.87716448,767.97,767.09,1.015]
[1754552417430,0.87716448,767.97,767.13,0.8768988]
[1754552418333,0.87716448,767.98,767.12,0.8768988]
[1754552419429,0.87716448,767.99,767.12,0.8768988]
[1754552419830,0.87716448,767.99,767.11,0.8768988]
[1754552420035,0.87716448,767.98,767.12,0.8768988]
[1754552420232,0.22653595,768.55,767.09,1.015]
[1754552420233,0.87716448,767.97,767.13,0.8768988]
[1754552420834,0.87716448,767.97,767.12,0.8768988]
[1754552421031,0.87716448,767.97,767.13,0.8768988]
[1754552421237,0.87716448,767.98,767.13,0.8768988]
[1754552421430,0.87716448,767.99,767.13,0.8768988]
[1754552421632,0.87716448,768.05,767.18,0.8768988]
[1754552422138,0.87716448,768.05,767.09,1.015]
[1754552422139,0.87716448,768.06,767.2,0.8768988]
[1754552422340,0.87716448,768.09,767.18,0.8768988]
[1754552422535,0.87716448,768.09,767.2,0.8768988]
[1754552422737,0.87716448,768.14,767.25,0.8768988]
[1754552422941,0.87716448,768.13,767.25,0.8768988]
[1754552423441,0.87716448,768.15,767.24,0.8768988]
[1754552423840,0.87716448,768.16,767.24,0.8768988]
[1754552424037,0.87716448,768.18,767.32,0.8768988]
[1754552424337,0.87716448,768.21,767.31,0.8768988]
[1754552424938,0.87716448,768.21,767.32,0.8768988]
[1754552425341,0.87716448,768.3,767.26,0.8768988]
[1754552425545,0.87716448,768.33,767.28,0.8768988]
[1754552426339,0.87716448,768.35,767.27,0.8768988]
[1754552427346,0.87716448,768.37,767.26,0.8768988]
[1754552428348,0.87716448,768.38,767.25,0.8768988]
[1754552429243,0.87716448,768.4,767.24,0.8768988]
[1754552430351,0.87716448,768.41,767.24,0.8768988]
[1754552430749,0.87716448,768.43,767.22,0.8768988]
[1754552431046,0.87716448,768.42,767.22,0.8768988]
[1754552431250,0.87716448,768.28,767.18,0.8768988]
[1754552431449,0.87716448,768.29,767.23,0.918]
[1754552431747,0.87716448,768.24,767.23,0.918]
[1754552432849,0.87716448,768.22,767.23,0.918]
[1754552433054,0.87716448,768.19,767.23,0.918]
[1754552433554,0.87716448,768.2,767.23,0.918]
[1754552433753,0.87716448,768.19,767.23,0.918]
[1754552434157,0.87716448,768.21,767.23,0.918]
[1754552435256,0.87716448,768.22,767.23,0.918]
[1754552436453,0.87716448,768.3,767.23,0.918]
[1754552436755,0.87716448,768.37,767.23,0.918]
[1754552436954,0.87716448,768.39,767.24,0.8768988]
[1754552437356,0.87716448,768.4,767.23,1.7948988]
[1754552437657,0.87716448,768.37,767.23,0.918]
[1754552437957,0.87716448,768.36,767.23,0.918]
[1754552439356,0.87716448,768.41,767.23,0.918]
[1754552439558,0.87716448,768.48,767.23,1.7948988]
[1754552439858,0.87716448,768.46,767.28,0.8768988]
[1754552441653,0.87716448,768.47,767.25,0.8768988]
[1754552442455,0.87716448,768.48,767.25,0.8768988]
[1754552443758,0.87716448,768.48,767.24,0.8768988]
[1754552444559,0.87716448,768.49,767.24,0.8768988]
[1754552444958,0.87716448,768.48,767.25,0.8768988]
[1754552445860,0.87716448,768.73,767.34,0.8768988]
[1754552446062,0.2265389,768.62,767.62,0.8768988]
[1754552446260,0.2265389,768.62,767.23,0.918]
[1754552446261,0.2265389,768.62,767.61,0.8768988]
[1754552446759,0.2265389,768.62,767.6,0.8768988]
[1754552446961,0.2265389,768.62,767.55,0.8768988]
[1754552447461,0.2265389,768.62,767.54,0.8768988]
[1754552449361,0.2265389,768.62,767.53,0.8768988]
[1754552450463,0.2265389,768.62,767.52,0.8768988]
[1754552452765,0.2265389,768.62,767.51,0.8768988]
[1754552454364,0.2265389,768.62,767.46,0.8768988]
[1754552454568,0.2265389,768.62,767.38,0.8768988]
[1754552454969,0.2265389,768.62,767.36,0.8768988]
[1754552456269,0.2265389,768.62,767.37,0.8768988]
[1754552456769,0.2265389,768.62,767.35,0.8768988]
[1754552457370,0.2265389,768.62,767.33,0.8768988]
[1754552457575,0.87716448,768.59,767.26,0.8768988]
[1754552458374,0.87716448,768.58,767.27,0.8768988]
[1754552459276,0.87716448,768.57,767.27,0.8768988]
[1754552459575,0.87716448,768.57,767.28,0.8768988]
[1754552459874,0.87716448,768.57,767.27,0.8768988]
[1754552460575,0.87716448,768.58,767.28,0.8768988]
[1754552461376,0.87716448,768.57,767.28,0.8768988]
[1754552462276,0.87716448,768.56,767.28,0.8768988]
[1754552462776,0.2265389,768.62,767.23,0.918]
[1754552465674,0.2265389,768.62,767.35,0.8768988]
[1754552467274,0.2265389,768.62,767.36,0.8768988]
[1754552467778,0.2265389,768.62,767.37,0.8768988]
[1754552468472,0.2265389,768.62,767.38,0.8768988]
[1754552468673,0.2265389,768.62,767.39,0.8768988]
[1754552469078,0.2265389,768.62,767.41,0.8768988]
[1754552469375,0.2265389,768.62,767.39,0.8768988]
[1754552469681,0.87716448,768.6,767.5,0.8768988]
[1754552470282,0.2265389,768.62,767.47,0.8768988]
[1754552471179,1.10370338,768.62,767.45,0.8768988]
[1754552471482,0.87716448,768.55,767.41,0.8768988]
[1754552471678,0.87716448,768.29,767.23,0.918]
[1754552471979,0.2265389,768.62,767.23,0.918]
[1754552471980,0.87716448,768.3,767.23,0.918]
[1754552472182,0.87716448,768.31,767.23,0.918]
[1754552472383,0.87716448,768.3,767.23,0.918]
[1754552473281,0.87716448,768.29,767.23,0.918]
[1754552473478,0.87716448,768.29,767.18,0.8768988]
[1754552473682,0.87716448,768.28,767.17,0.8768988]
[1754552474184,0.87716448,768.27,767.16,0.8768988]
[1754552474382,0.87716448,768.26,767.17,0.8768988]
[1754552474582,0.87716448,768.25,767.16,0.8768988]
[1754552475985,0.87716448,768.25,767.17,0.813]
[1754552476385,0.87716448,768.24,767.17,1.6898988]
[1754552476982,0.87716448,768.24,767.17,0.813]
[1754552477283,0.87716448,768.23,767.17,1.6898988]
[1754552479087,0.87716448,768.24,767.17,0.813]
[1754552479289,0.87716448,768.22,767.17,1.6898988]
[1754552480290,0.87716448,768.19,767.19,0.8768988]
[1754552481991,0.87716448,768.17,767.17,1.6898988]
[1754552483290,0.87716448,768.17,767.18,0.8768988]
[1754552483589,0.87716448,768.18,767.18,0.8768988]
[1754552483787,0.87716448,768.19,767.19,0.8768988]
[1754552484086,0.87716448,768.41,767.17,0.813]
[1754552484686,0.87716448,768.4,767.17,0.813]
[1754552484985,0.87716448,768.39,767.17,0.813]
[1754552485190,0.87716448,768.38,767.17,0.813]
[1754552486990,0.87716448,768.36,767.17,0.813]
[1754552487287,0.87716448,768.25,767.17,0.813]
[1754552488088,0.87716448,768.24,767.17,0.813]
[1754552488592,0.87716448,768.25,767.17,0.813]
[1754552489289,0.87716448,768.26,767.17,0.813]
[1754552489491,0.87716448,768.27,767.17,0.813]
[1754552489994,0.87716448,768.28,767.17,0.813]
[1754552490793,0.87716448,768.26,767.17,0.813]
[1754552492395,0.87716448,768.27,767.17,0.813]
[1754552492593,0.87716448,768.25,767.17,0.813]
[1754552493298,0.87716448,768.24,767.17,0.813]
[1754552493897,0.87716448,768.1,767.17,0.813]
[1754552494093,0.87716448,768.03,767.17,0.813]
[1754552494795,0.87716448,768.01,767.17,0.813]
[1754552495098,0.87716448,767.97,767.17,0.813]
[1754552495395,0.87716448,767.98,767.17,0.813]
[1754552495893,0.87716448,767.99,767.17,0.813]
[1754552496297,0.87716448,768.0,767.17,0.813]
[1754552496993,0.87716448,767.99,767.17,0.813]
[1754552497299,0.87716448,768.0,767.17,0.813]
[1754552498497,0.87716448,768.01,767.17,0.813]
[1754552499400,0.87716448,768.02,767.17,0.813]
[1754552501396,1.1717596,768.17,767.17,0.813]
[1754552501397,0.87716448,768.03,767.17,0.813]
[1754552502101,0.2265389,768.62,767.17,0.813]
[1754552502102,0.87716448,768.02,767.17,0.813]
[1754552502502,1.1717596,768.17,767.17,0.813]
[1754552502503,0.87716448,768.03,767.17,0.813]
[1754552504102,0.87716448,768.04,767.17,0.813]
[1754552505804,0.87716448,768.03,767.17,0.813]
[1754552506703,0.87716448,768.04,767.17,0.813]
[1754552507008,0.87716448,767.96,767.17,0.813]
[1754552507209,0.87716448,767.88,767.17,0.813]
[1754552507406,0.87716448,767.9,767.17,0.813]
[1754552507811,0.87716448,767.89,767.17,0.813]
[1754552509012,0.87716448,767.9,767.17,0.813]
[1754552509209,1.1717596,768.05,767.17,0.813]
[1754552509210,0.87716448,767.92,767.17,0.813]
[1754552509714,0.87716448,767.9,767.17,0.813]
[1754552511311,0.87716448,767.89,767.17,0.813]
[1754552511509,0.87716448,767.9,767.17,0.813]
[1754552512314,0.87716448,767.89,767.17,0.813]
[1754552512610,1.7575532,768.19,767.17,0.813]
[1754552512611,0.87716448,767.9,767.17,0.813]
[1754552513413,0.87716448,767.89,767.17,0.813]
[1754552514112,0.87716448,767.9,767.17,0.813]
[1754552514310,0.87716448,767.89,767.17,0.813]
[1754552514509,0.87716448,767.9,767.17,0.813]
[1754552515012,0.87716448,767.89,767.17,0.813]
[1754552515813,0.87716448,767.9,767.17,0.813]
[1754552516117,0.87716448,767.92,767.17,0.813]
[1754552516913,0.87716448,767.91,767.17,0.813]
[1754552518113,0.87716448,767.9,767.17,0.813]
[1754552518317,0.87716448,767.91,767.17,0.813]
[1754552518514,0.87716448,767.92,767.17,0.813]
[1754552522023,0.87716448,768.11,767.17,0.813]
[1754552522317,0.87716448,768.3,767.17,0.813]
[1754552522719,0.87716448,768.29,767.17,0.813]
[1754552523518,0.87716448,768.28,767.17,0.813]
[1754552524418,0.87716448,768.27,767.17,0.813]
[1754552525523,0.87716448,768.26,767.17,0.813]
[1754552526325,0.87716448,768.25,767.17,0.813]
[1754552526525,0.87716448,768.24,767.17,0.813]
[1754552527326,0.87716448,768.23,767.17,0.813]
[1754552527521,0.87716448,768.22,767.17,0.813]
[1754552528227,0.87716448,768.21,767.17,0.813]
[1754552528526,0.87716448,768.19,767.17,0.813]
[1754552528722,0.87716448,768.17,767.17,0.813]
[1754552528922,0.87716448,768.16,767.17,0.813]
[1754552529126,0.87716448,768.15,767.17,0.813]
[1754552529327,0.87716448,768.13,767.17,0.813]
[1754552530324,0.87716448,768.1,767.17,0.813]
[1754552531227,0.87716448,768.09,767.17,0.813]
[1754552531422,0.87716448,768.06,767.17,0.813]
[1754552531928,0.87716448,768.0,767.17,0.813]
[1754552532224,0.87716448,767.97,767.17,0.813]
[1754552532527,1.7575532,768.3,767.17,0.813]
[1754552532528,0.87716448,767.96,767.17,0.813]
[1754552534430,0.87716448,767.95,767.17,0.813]
[1754552536025,0.87716448,767.95,767.09,0.8768988]
[1754552536225,0.87716448,767.94,767.09,0.8768988]
[1754552536531,0.87716448,767.94,767.1,0.8768988]
[1754552537430,0.87716448,767.93,767.1,0.8768988]
[1754552538230,0.87716448,767.92,767.1,0.8768988]
[1754552538526,0.87716448,767.92,767.11,0.8768988]
[1754552539232,0.87716448,767.9,767.12,0.8768988]
[1754552539430,0.87716448,767.89,767.12,0.8768988]
[1754552539633,0.87716448,767.89,767.13,0.849]
[1754552540432,0.87716448,767.89,767.13,1.7258988]
[1754552540631,0.87716448,767.87,767.14,0.8768988]
[1754552541431,0.87716448,767.87,767.15,0.8768988]
[1754552541629,0.87716448,767.87,767.13,0.849]
[1754552541832,0.87716448,767.86,767.13,0.849]
[1754552542229,1.1717596,768.0,767.13,0.849]
[1754552542428,0.87591588,767.77,767.13,0.849]
[1754552543429,0.87591588,767.73,767.13,0.849]
[1754552543634,0.87591588,767.74,767.13,0.849]
[1754552544035,0.87591588,767.69,767.13,0.849]
[1754552545229,0.87591588,767.7,767.13,0.849]
[1754552545434,0.87591588,767.67,767.13,0.849]
[1754552548435,0.87591588,767.68,767.13,0.849]
[1754552548734,0.87591588,767.67,767.13,0.849]
[1754552549438,0.87591588,767.68,767.13,0.849]
[1754552551637,0.87591588,767.67,767.13,0.849]
[1754552551841,0.87591588,767.66,767.13,0.849]
[1754552553543,0.87591588,767.62,767.13,0.849]
[1754552554340,0.87591588,767.61,767.13,0.849]
[1754552556545,0.87591588,767.61,766.86,0.87542459]
[1754552557341,0.87591588,767.61,766.85,0.87542459]
[1754552557748,0.87591588,767.62,766.85,0.87542459]
[1754552558346,0.87591588,767.65,766.87,0.87542459]
[1754552558745,0.87591588,767.64,766.87,0.87542459]
[1754552559851,0.87591588,767.64,766.88,1.106]
[1754552560748,0.87591588,767.65,766.88,1.106]
[1754552560948,0.87591588,767.68,766.92,0.87542459]
[1754552565659,0.87591588,767.68,766.93,0.87542459]
[1754552567262,0.87591588,767.69,766.92,0.87542459]
[1754552568065,0.87591588,767.85,766.88,1.106]
[1754552568565,0.87591588,767.84,766.88,1.106]
[1754552569065,0.87591588,767.85,766.88,1.106]
[1754552569264,0.87591588,767.98,766.95,0.87542459]
[1754552571465,0.87591588,767.99,766.96,0.87542459]
[1754552572364,0.87591588,767.98,766.96,0.87542459]
[1754552572667,0.87591588,767.93,766.99,0.87542459]
[1754552573566,0.87591588,767.94,766.99,0.87542459]
[1754552574164,0.87591588,767.93,767.0,0.87542459]
[1754552574763,0.87591588,767.92,766.99,0.87542459]
[1754552575168,0.87591588,767.91,766.98,0.87542459]
[1754552575367,0.87591588,767.9,766.98,0.87542459]
[1754552576464,0.87591588,767.94,766.96,0.87542459]
[1754552577070,0.87591588,767.93,766.96,0.87542459]
[1754552577373,0.87591588,767.87,766.93,0.87542459]
[1754552577569,0.87591588,767.82,766.88,1.98142459]
[1754552577868,0.87591588,767.81,766.88,1.106]
[1754552580268,0.87591588,767.78,766.88,1.106]
[1754552580568,0.87591588,767.74,766.88,1.106]
[1754552580972,0.87591588,767.73,766.88,1.106]
[1754552583776,0.87591588,767.66,766.88,1.106]
[1754552584975,0.87591588,767.67,766.88,1.106]
[1754552585372,0.87591588,767.68,766.88,1.106]
[1754552586374,0.87591588,767.66,766.88,1.106]
[1754552587177,0.87591588,767.67,766.88,1.106]
[1754552590180,0.87591588,767.66,766.88,1.106]
[1754552592475,0.87591588,767.62,766.88,1.106]
[1754552593280,1.1717596,767.84,766.88,1.106]
[1754552593281,0.87591588,767.63,766.88,1.106]
[1754552593479,0.87591588,767.62,766.88,1.106]
[1754552594182,0.87591588,767.63,766.88,1.106]
[1754552594382,0.87591588,767.62,766.88,1.106]
[1754552594682,0.87591588,767.63,766.88,1.106]
[1754552594982,0.87591588,767.6,766.88,1.106]
[1754552595283,0.87591588,767.61,766.88,1.106]
[1754552595484,0.87591588,767.6,766.88,1.106]
[1754552596279,0.87591588,767.58,766.88,1.106]
[1754552596484,0.87591588,767.52,766.88,1.106]
[1754552597083,0.87591588,767.51,766.88,1.106]
[1754552598184,0.87591588,767.52,766.88,1.106]
[1754552598385,0.87591588,767.54,766.88,1.106]
[1754552598586,0.87591588,767.53,766.88,1.106]
[1754552599484,0.87591588,767.52,766.88,1.106]
[1754552600187,0.87591588,767.53,766.88,1.106]
[1754552600391,0.87591588,767.52,766.88,1.106]
[1754552601188,0.87591588,767.59,766.88,1.106]
[1754552603890,0.87591588,767.59,766.83,0.87542459]
[1754552605090,0.87591588,767.57,766.84,0.87542459]
[1754552606890,0.87591588,767.56,766.85,0.928]
[1754552607589,0.87591588,767.63,766.85,0.928]
[1754552608194,0.87591588,767.64,766.85,0.928]
[1754552608494,0.87591588,767.66,766.85,0.928]
[1754552609095,0.87591588,767.72,766.9,0.87542459]
[1754552609990,0.87591588,767.71,766.89,0.87542459]
[1754552611495,0.87591588,767.72,766.9,0.87542459]
[1754552611992,0.87591588,767.66,766.95,0.87542459]
[1754552612392,0.87591588,767.72,767.01,0.87542459]
[1754552612791,0.87591588,767.73,767.0,0.87542459]
[1754552616099,0.87591588,767.72,766.99,0.87542459]
[1754552616296,0.87591588,767.73,766.99,0.87542459]
[1754552618295,0.87591588,767.72,766.99,0.87542459]
[1754552618500,0.87591588,767.73,766.99,0.87542459]
[1754552619097,0.87591588,767.72,766.99,0.87542459]
[1754552620397,0.87591588,767.73,766.99,0.87542459]
[1754552621896,0.87591588,767.7,767.01,0.87542459]
[1754552622696,0.87591588,767.69,767.02,0.87542459]
[1754552626200,0.87591588,767.7,767.02,0.87542459]
[1754552630506,0.87591588,767.69,767.02,0.87542459]
[1754552631106,0.87591588,767.75,766.99,0.87542459]
[1754552631303,1.7575532,768.06,766.83,1.1716939]
[1754552631304,0.87591588,767.74,766.98,0.87542459]
[1754552631506,0.87591588,767.73,766.98,0.87542459]
[1754552632417,0.87591588,767.79,766.99,1.045]
[1754552636114,0.87591588,767.78,766.99,1.045]
[1754552636817,0.87591588,767.8,766.99,1.045]
[1754552637117,0.87591588,767.82,766.99,1.045]
[1754552637310,1.1717596,768.06,766.99,1.045]
[1754552637311,0.87591588,767.81,766.99,1.045]
[1754552638216,0.87591588,767.8,766.99,1.045]
[1754552638418,0.87591588,767.79,766.99,1.045]
[1754552638617,0.87591588,767.8,766.99,1.045]
[1754552640717,0.87591588,767.79,766.99,1.045]
[1754552642322,0.87591588,767.68,766.99,1.045]
[1754552642617,0.87591588,767.7,766.99,1.045]
[1754552645219,0.87591588,767.86,766.99,1.045]
[1754552645521,0.87591588,767.81,766.99,1.045]
[1754552646524,0.87591588,767.78,766.99,1.045]
[1754552648230,0.87591588,767.78,766.8,0.87542459]
[1754552649330,0.87591588,767.77,766.8,0.87542459]
[1754552651031,0.87591588,767.74,766.77,0.87542459]
[1754552651232,0.87591588,767.74,766.78,0.87542459]
[1754552651733,0.87591588,767.74,766.79,1.058]
[1754552652136,0.87591588,767.73,766.79,1.058]
[1754552652836,0.87591588,767.62,766.84,0.87542459]
[1754552653838,0.87591588,767.55,766.89,0.87542459]
[1754552654134,0.87591588,767.54,766.89,0.87542459]
[1754552654334,0.87591588,767.54,766.9,0.87542459]
[1754552655237,0.22672708,767.8,766.94,0.87542459]
[1754552655238,0.87591588,767.58,766.94,0.87542459]
[1754552655938,0.87591588,767.57,766.94,0.87542459]
[1754552656338,0.87591588,767.61,766.94,0.87542459]
[1754552657237,0.87591588,767.63,766.96,0.87542459]
[1754552658336,0.87591588,767.62,766.96,0.87542459]
[1754552658535,0.87591588,767.62,766.97,0.87542459]
[1754552659237,0.87591588,767.62,766.79,1.058]
[1754552659238,0.87591588,767.66,767.02,0.87542459]
[1754552659433,0.87591588,767.71,767.07,0.87542459]
[1754552660138,0.87591588,767.71,767.08,0.87542459]
[1754552660339,0.87591588,767.7,767.08,0.87542459]
[1754552662138,0.87591588,767.7,767.09,0.87542459]
[1754552662336,0.87591588,767.7,767.08,0.87542459]
[1754552664341,0.87591588,767.7,767.09,0.87542459]
[1754552664838,0.22673447,767.87,766.79,1.058]
[1754552664839,0.87591588,767.76,767.05,0.87542459]
[1754552667242,0.87591588,767.75,767.05,0.87542459]
[1754552668142,0.87591588,767.74,767.04,0.87542459]
[1754552668342,0.87591588,767.74,767.05,0.87542459]
[1754552668844,0.87591588,767.75,767.05,0.87542459]
[1754552669140,0.87591588,767.74,767.06,0.87542459]
[1754552671239,0.87591588,767.75,767.07,0.87542459]
[1754552671443,0.87591588,767.74,767.06,0.87542459]
[1754552674646,0.87591588,767.65,767.12,0.87542459]
[1754552674842,0.87591588,767.66,767.11,0.87542459]
[1754552675042,0.87591588,767.76,767.13,0.87542459]
[1754552675244,0.87591588,767.78,767.13,0.87542459]
[1754552676842,0.87591588,767.76,767.14,0.87542459]
[1754552678246,0.87591588,767.87,767.07,0.87542459]
[1754552680244,0.87591588,767.87,767.06,0.87542459]
[1754552681048,0.87591588,767.86,767.07,0.87542459]
[1754552681248,0.87591588,767.87,767.07,0.87542459]
[1754552681648,0.87591588,767.86,767.07,0.87542459]
[1754552681849,0.87591588,767.86,767.06,0.87542459]
[1754552683448,0.87591588,767.86,767.05,0.87542459]
[1754552683844,0.87591588,767.87,767.05,0.87542459]
[1754552685244,0.87591588,767.87,767.04,0.87542459]
[1754552686450,0.87591588,767.88,767.05,0.87542459]
[1754552687150,0.87591588,767.88,767.04,0.87542459]
[1754552688049,0.87591588,767.81,767.08,0.87542459]
[1754552688648,0.87696973,767.78,767.11,0.87547177]
[1754552691154,0.87696973,767.79,767.12,0.87547177]
[1754552691354,0.87696973,767.8,767.12,0.87547177]
[1754552691551,0.22668942,768.01,767.12,0.87547177]
[1754552691552,0.87696973,767.79,767.12,0.87547177]
[1754552692154,0.87696973,767.8,767.12,0.87547177]
[1754552693751,0.87696973,767.75,767.15,0.87547177]
[1754552693953,0.87696973,767.75,767.14,0.87547177]
[1754552694357,0.87696973,767.76,767.14,0.87547177]
[1754552694554,0.87696973,767.75,767.13,0.87547177]
[1754552695359,1.1717596,767.88,766.79,1.058]
[1754552695360,0.87696973,767.76,767.14,0.87547177]
[1754552696157,0.87696973,767.75,767.14,0.87547177]
[1754552697258,0.87696973,767.76,767.14,0.87547177]
[1754552697858,0.87696973,767.75,767.13,0.87547177]
[1754552698957,0.87696973,767.77,767.11,0.87547177]
[1754552701059,0.87696973,767.76,767.1,0.87547177]
[1754552701363,0.87696973,767.76,767.11,0.87547177]
[1754552701564,0.87696973,767.76,767.1,0.87547177]
[1754552701765,0.87696973,767.76,767.11,0.87547177]
[1754552702863,0.87696973,767.74,767.09,0.87547177]
[1754552703166,0.87696973,767.75,767.1,0.87547177]
[1754552703366,0.87696973,767.75,767.11,0.97]
[1754552704268,0.87696973,767.78,767.11,0.97]
[1754552707366,0.87696973,767.77,767.11,0.97]
[1754552709167,0.87696973,767.76,767.11,0.97]
[1754552710472,0.87696973,767.75,767.11,0.97]
[1754552710672,0.87696973,767.76,767.11,0.97]
[1754552711168,0.87696973,767.75,767.11,1.84547177]
[1754552712373,0.87696973,767.74,767.11,1.84547177]
[1754552712574,0.87696973,767.74,767.12,0.87547177]
[1754552713374,0.87696973,767.73,767.13,0.87547177]
[1754552713876,0.87696973,767.73,767.12,0.87547177]
[1754552714077,0.87696973,767.71,767.14,0.87547177]
[1754552714278,0.87696973,767.68,767.16,0.87547177]
[1754552715275,0.87696973,767.69,767.16,0.87547177]
[1754552716278,0.87696973,767.68,767.17,0.87547177]
[1754552716978,0.87696973,767.67,767.16,0.87547177]
[1754552717374,0.87696973,767.68,767.17,0.87547177]
[1754552717780,0.87696973,767.63,767.11,1.84547177]
[1754552718075,0.87696973,767.62,767.12,0.87547177]
[1754552719080,0.87696973,767.61,767.12,0.87547177]
[1754552719381,0.87696973,767.61,767.13,0.87547177]
[1754552719580,0.22668942,768.01,767.11,0.97]
[1754552719581,0.87696973,767.62,767.12,0.87547177]
[1754552722080,0.87696973,767.64,767.11,0.97]
[1754552722282,0.87696973,767.53,767.11,0.97]
[1754552722484,0.87696973,767.48,767.11,0.97]
[1754552723079,0.87696973,767.53,767.11,0.97]
[1754552723279,0.87696973,767.55,767.11,0.97]
[1754552723483,0.87696973,767.58,767.11,0.97]
[1754552723687,0.87696973,767.59,767.11,0.97]
[1754552723979,0.87696973,767.67,767.11,0.97]
[1754552726286,0.87696973,767.68,767.11,0.97]
[1754552727988,0.87696973,767.69,767.11,0.97]
[1754552728189,0.87696973,767.68,767.11,0.97]
[1754552729287,0.87696973,767.69,767.11,0.97]
[1754552730891,0.87696973,767.68,767.11,0.97]
[1754552732392,0.87696973,767.69,767.11,0.97]
[1754552732890,0.87696973,767.67,767.11,0.97]
[1754552733186,0.87696973,767.61,767.11,0.97]
[1754552734198,0.87696973,767.62,767.11,0.97]
[1754552737299,0.87696973,767.63,767.11,0.97]
[1754552737598,0.87696973,767.62,767.11,0.97]
[1754552737999,0.87696973,767.61,767.11,0.97]
[1754552740300,0.87696973,767.62,767.11,0.97]
[1754552741302,0.87696973,767.61,767.11,0.97]
[1754552742802,0.87696973,767.6,767.11,0.97]